Cogmind - Beta 16 @@@ ROGUE MODE // 2025.12.24 @ 19:54:11 Player: Andru7428 Result: Destroyed by 8R-AWN with 8R-AWN's Boregun Performance ------------- Evolutions (1) 500 Regions Visited (5) 1000 Robots Destroyed (51) 255 Value Destroyed (1161) 1161 Prototype IDs (12) 240 Alien Tech Used (0) 0 Bonus (213) 213 TOTAL SCORE: 3369 Bonus ------- Follower Combat Kills 236 Friendly Fire -23 Cogmind --------- Core Integrity 0/400 Matter 165/300 Energy 86/275 System Corruption 0% Temperature Cool (75) Movement Rolling (150) Ox4 Location -9/Exiles Parts ------- > --- POWER (1) -------- Deuterium Engine > --- PROPULSION (2) --- Armored Wheel Armored Wheel > --- UTILITY (4) ------ Improved Heat Sink Huge Storage Unit Hardened Light Armor Plating Hardened Light Armor Plating > --- WEAPON (2) ------- EM Pulse Cannon > --- INVENTORY (25) --- Nuclear Core Nuclear Core Nuclear Core Wheel Compact Wheel Large Storage Unit Experimental Sensor Array Seismic Detector Advanced Beam Cannon Advanced Beam Cannon Rocket Launcher Hammer Peak State ------------ > --- POWER ------------ Improved Ion Engine > --- PROPULSION ------- Light Treads Improved Treads > --- UTILITY ---------- Large Storage Unit Hardened Light Armor Plating Bomb Drone Bay > --- WEAPON ----------- Beamcaster Advanced Beam Cannon > --- INVENTORY -------- Deuterium Engine Armored Wheel Armored Wheel Armored Wheel Huge Storage Unit Experimental Sensor Array Hardened Light Armor Plating Hardened Light Armor Plating Improved EM Shotgun Improved EM Shotgun EM Pulse Cannon EM Pulse Cannon Advanced Beam Cannon Rocket Launcher Hammer [Rating: 34] Favorites ----------- Power Improved Ion Engine Engine Improved Ion Engine Propulsion Light Treads Treads Light Treads Wheel Armored Wheel Utility Large Storage Unit Device Improved Heat Sink Storage Large Storage Unit Processor Signal Interpreter Protection Hardened Light Armor Plating Weapon Advanced Beam Cannon Energy Gun Beamcaster Energy Cannon Advanced Beam Cannon Ballistic Gun Light Assault Rifle Launcher Rocket Launcher Impact Weapon Hammer Build | -11 -10 -10 -9 -9 -9 ------- Run | Yrd Mat Min Mat Min Exi Slots Evolved 2 | . . . 2 . . Power . | . . . . . . Propulsion . | . . . . . . Utility 2 | . . . 2 . . Weapon . | . . . . . . Parts Attached 45 | 7 5 4 15 10 4 Power 6 | 1 1 . 3 . 1 Engine 6 | 1 1 . 3 . 1 Core . | . . . . . . Reactor . | . . . . . . Propulsion 10 | 2 . 1 4 3 . Treads 7 | 2 . 1 4 . . Leg . | . . . . . . Wheel 3 | . . . . 3 . Hover . | . . . . . . Flight . | . . . . . . Utility 18 | 2 4 2 5 5 . Device 9 | 1 2 2 2 2 . Storage 3 | 1 1 . . 1 . Processor 1 | . 1 . . . . Hackware . | . . . . . . Protection 5 | . . . 3 2 . Artifact . | . . . . . . Weapon 11 | 2 . 1 3 2 3 Energy Gun 4 | 1 . 1 1 . 1 Energy Cannon 4 | . . . 1 1 2 Ballistic Gun 1 | 1 . . . . . Ballistic Cannon . | . . . . . . Launcher 1 | . . . 1 . . Special Weapon . | . . . . . . Impact Weapon 1 | . . . . 1 . Slashing Weapon . | . . . . . . Piercing Weapon . | . . . . . . Special Melee Weapon . | . . . . . . Unidentified Prototypes 5 | . . 1 3 1 . Parts Lost 18 | . . 2 5 4 7 Power 2 | . . . 1 . 1 Propulsion 6 | . . 1 2 1 2 Utility 6 | . . 1 2 2 1 Weapon 4 | . . . . 1 3 Highest Loss Streak 4 | . . 1 4 4 4 To Critical Strikes 6 | . . . . . 6 Average Backups 12 | 4 9 10 13 14 16 Power 1 | . 1 1 1 1 3 Propulsion 3 | 2 3 3 2 3 3 Utility 3 | . 2 2 4 3 4 Weapon 4 | 1 1 2 5 6 5 Tool/Special . | . . . . . . Unused Backups 20 | . 1 . 14 . 5 Power 4 | . . . 1 . 3 Propulsion 7 | . 1 . 4 . 2 Utility 2 | . . . 2 . . Weapon 6 | . . . 6 . . Tool/Special 1 | . . . 1 . . Average Slot Usage (%) 98 | . 100 99 98 99 86 Engine 12 | . 14 14 11 11 11 Treads 19 | . 28 28 21 6 7 Wheel 4 | . . . . 15 14 Device 17 | . 13 13 24 15 15 Storage 12 | . 14 14 11 11 11 Protection 7 | . . . 8 17 12 Energy Gun 12 | . 14 22 12 4 3 Energy Cannon 7 | . . . 9 17 7 Ballistic Gun 3 | . 14 5 . . . Peak Build Rating 34 | 7 10 21 24 34 34 Average Rating 17 | 4 7 10 21 23 24 On Entrance 12 | . 7 8 13 24 21 Avg Prop Armor Cover (%) . | . . . . . . Naked Turns . | . . . . . . Heaviest Build 106 | 14 29 33 45 106 104 Greatest Support 43 | 40 40 40 43 43 24 Greatest Overweight (x) 4 | 1 . . 1 4 4 Average Overweight (x) . | . . . . 3 3 Largest Inventory Capacity 25 | 8 15 15 15 25 25 Average Capacity 16 | 7 13 15 15 22 25 Most Carried 22 | 8 12 15 15 18 22 Average Carried 13 | 4 9 14 14 15 16 Final Capacity 25 | 8 15 15 15 25 25 Final Carried 16 | 6 11 15 15 16 12 Class Distribution -------------------- 52% | Scavenger-Mutant 47% | Mutant Dominant Class ---------------- Mutant | -10/Materials Scavenger-Mutant | -10/Mines Scavenger-Mutant | -9/Materials Mutant | -9/Mines Mutant | -9/Exiles Resources | -11 -10 -10 -9 -9 -9 ----------- Run | Yrd Mat Min Mat Min Exi Matter Collected 849 | 274 110 152 223 90 . Remotely . | . . . . . . Salvage Created 1733 | 102 378 249 890 114 . Parts 103 | 5 25 12 52 9 . Haulers Intercepted 6 | . 2 . 4 . . Recyclers Shooed 1 | . . 1 . . . Parts Field Recycled . | . . . . . . Retrieved Matter . | . . . . . . Parts Self-Destructed . | . . . . . . Prevented . | . . . . . . Parts Restored . | . . . . . . Kills | -11 -10 -10 -9 -9 -9 ------- Run | Yrd Mat Min Mat Min Exi Combat Hostiles Destroyed 27 | . 5 6 15 1 . Guns 17 | . 5 6 6 . . Cannons 6 | . . . 5 1 . AOE 3 | . . . 3 . . Classes Destroyed 13 | 2 4 . 5 2 . Worker 3 | . 2 . 1 . . Builder 1 | . . . . 1 . Tunneler 4 | 2 . . 1 1 . Hauler 6 | . 2 . 4 . . Recycler 3 | 1 . . 1 1 . Operator 2 | . . . 2 . . Watcher 5 | . 2 . 3 . . Swarmer 4 | . . . 4 . . Grunt 15 | . 5 6 4 . . Brawler 1 | . . . 1 . . Duelist 1 | . . . 1 . . Sentry 5 | . . . 5 . . Demolisher 1 | . . . . 1 . Best Kill Streak 7 | 2 3 2 7 2 . Combat Bots Only 7 | . 2 2 7 1 . Max Kills in Single Turn 3 | 1 1 1 3 2 . Gunslinging . | . . . . . . Exploded 3 | . . . 3 . . Melee . | . . . . . . Uniques/NPCs Destroyed . | . . . . . . Combat | -11 -10 -10 -9 -9 -9 -------- Run | Yrd Mat Min Mat Min Exi Hostile Shots Fired 230 | . 23 35 55 15 102 Missed 48 | . 5 8 15 . 20 Hits 182 | . 18 27 40 15 82 Melee 4 | . . . 4 . . Projectile 178 | . 18 27 36 15 82 AOE 15 | . . . . 15 . Critical Strikes 46 | . 1 . 2 . 43 Damage Taken 3248 | . 224 373 637 584 1430 Core 496 | . 36 51 93 93 223 Absorbed by Shields . | . . . . . . Regen/Repaired (Parts) 149 | . . . 149 . . Core Remaining (%) 82 | 100 . 65 . . . Volleys Fired 207 | 4 40 23 71 9 60 Largest 2 | 2 2 2 2 2 2 Hottest 143 | 70 70 125 143 143 108 Shots Fired 367 | 8 79 46 141 18 75 Gun 261 | 8 79 46 76 3 49 Cannon 105 | . . . 64 15 26 Launcher 1 | . . . 1 . . Special . | . . . . . . Kinetic 64 | 4 40 20 . . . Thermal 227 | 4 39 26 140 18 . Explosive 1 | . . . 1 . . Electromagnetic 75 | . . . . . 75 Robot Hit Streak 20 | 6 14 14 11 4 20 Robot Miss Streak 4 | . 4 2 4 2 3 Penetration Max . | . . . . . . Secondary Targets 2 | . . 2 . . . Max Gunslinging Chain 1 | . . 1 . . . Shots Hit Robots 254 | 6 50 34 81 11 72 Core Hits 83 | 4 19 13 28 5 14 Critical Kills 1 | . . . 1 . . Critical Parts Destroyed . | . . . . . . Critical Strikes 12 | . 4 2 6 . . Burn 11 | . 4 2 5 . . Meltdown 1 | . . . 1 . . Melee Attacks 4 | . . . . 4 . Impact 4 | . . . . 4 . Slashing . | . . . . . . Piercing . | . . . . . . Sneak Attacks . | . . . . . . Combat Hostiles . | . . . . . . Follow-up Attacks . | . . . . . . Damage Inflicted 3387 | 74 549 402 2014 250 98 Guns 1942 | 68 533 387 869 43 42 Cannons 1094 | . . . 837 207 50 Explosions 250 | . . . 244 . 6 Melee . | . . . . . . Ramming 101 | 6 16 15 64 . . Kinetic 310 | 16 181 113 . . . Thermal 2640 | 52 352 274 1706 250 6 Explosive 244 | . . . 244 . . Electromagnetic 92 | . . . . . 92 Impact . | . . . . . . Slashing . | . . . . . . Piercing . | . . . . . . Highest Corruption . | . . . . . . Average Corruption . | . . . . . . Corruption Purged . | . . . . . . Corruption Blocked . | . . . . . . Overload Shots . | . . . . . . Overflow Damage 55 | . . . 55 . . Projectiles 2 | . . . 2 . . Explosions 53 | . . . 53 . . Melee . | . . . . . . Knockbacks . | . . . . . . Impact . | . . . . . . Kinetic . | . . . . . . Secondary . | . . . . . . Self-Inflicted Damage 20 | . . . . . 20 Shots 1 | . . . . . 1 Rammed 19 | 1 2 5 11 . . Targets Rammed 19 | 1 2 5 11 . . Kicked . | . . . . . . Crushed . | . . . . . . Highest Temperature 171 | 40 146 72 129 171 75 Average Temperature 33 | 20 37 22 33 66 18 Received Heat Transfer 552 | . 147 210 195 . . Siege Activations . | . . . . . . Martial Activations . | . . . . . . Shielding Activations . | . . . . . . Robots Disrupted . | . . . . . . Combat Hostiles . | . . . . . . Robots Corrupted . | . . . . . . Combat Hostiles . | . . . . . . Parts Fried . | . . . . . . Impact Corruptions . | . . . . . . Robots Melted 1 | . . . 1 . . Combat Hostiles 1 | . . . 1 . . Parts Melted 17 | . 2 4 11 . . Heat Transferred 6228 | 148 1332 888 3404 444 12 Parts Sabotaged . | . . . . . . Parts Stolen . | . . . . . . Parts Stripped . | . . . . . . Power Chain Reactions 1 | . . . . . 1 Alert | -11 -10 -10 -9 -9 -9 ------- Run | Yrd Mat Min Mat Min Exi Maximum Alert Level . | . . . . . . Low Security (%) 100 | 100 100 100 100 100 . Level 1 . | . . . . . . Level 2 . | . . . . . . Level 3 . | . . . . . . Level 4 . | . . . . . . Level 5 . | . . . . . . High Security . | . . . . . . Max Security . | . . . . . . Peak Influence 197 | 10 44 67 197 65 . Initial 65 | . . 3 18 65 . Average 28 | 1 6 9 69 5 . Influence Increases 1167 | 15 172 232 712 36 . Destroy 0b10 Robot/C 700 | . 100 160 420 20 . Destroy 0b10 Robot/NC 125 | 15 30 . 65 15 . Destroy Leader 204 | . 28 40 136 . . Allied During Kill 29 | . . 17 12 . . Successful Hack 49 | . 13 . 36 . . Disable Machine 30 | . . . 30 . . Destroy Structure 15 | . 1 . 13 1 . Lose Combat Pursuer 15 | . . 15 . . . Influence Decreases 1167 | 15 164 191 593 203 1 Entered New Map 140 | . . 5 31 103 1 Time Decay 860 | 15 164 146 435 100 . Lost Part 70 | . . 20 50 . . Lost Ally 60 | . . 20 40 . . Purge Threat 37 | . . . 37 . . Squads Dispatched 3 | . 1 . 1 1 . Investigation . | . . . . . . Extermination . | . . . . . . Reinforcement 2 | . 1 . 1 . . Assault 1 | . . . . 1 . Garrison . | . . . . . . Intercept . | . . . . . . Searches Triggered . | . . . . . . Construction Impeded . | . . . . . . Haulers Reinforced . | . . . . . . Active Scanning Responses . | . . . . . . Cargo Convoy Interrupts . | . . . . . . Stealth | -11 -10 -10 -9 -9 -9 --------- Run | Yrd Mat Min Mat Min Exi Distress Signals 3 | . 2 . 1 . . Communications Jammed . | . . . . . . Distress Signals . | . . . . . . Times Spotted 61 | . 12 8 31 2 8 Peak Tracking Total 9 | . 2 2 6 2 9 Tactical Retreats 1 | . . 1 . . . Traps | -11 -10 -10 -9 -9 -9 ------- Run | Yrd Mat Min Mat Min Exi Traps Triggered 1 | . . . 1 . . Indirectly . | . . . . . . Trap Hack Attempts . | . . . . . . Triggered . | . . . . . . Disarmed . | . . . . . . Reprogrammed . | . . . . . . Reused . | . . . . . . Traps Extracted . | . . . . . . Installed . | . . . . . . Triggered . | . . . . . . Most Traps Carried 4 | . . 4 3 . . Machines | -11 -10 -10 -9 -9 -9 ---------- Run | Yrd Mat Min Mat Min Exi Machines Disabled 4 | . . . 2 . 2 Max in Single Turn 1 | . . . 1 . 1 Machines Repaired . | . . . . . . Machines Dismantled . | . . . . . . Machines Sabotaged . | . . . . . . Overloaded Fab Kills . | . . . . . . Hacking | -11 -10 -10 -9 -9 -9 --------- Run | Yrd Mat Min Mat Min Exi Machines Accessed 18 | . 7 . 10 1 . Terminals 15 | . 7 . 8 . . Fabricators . | . . . . . . Repair Stations 1 | . . . 1 . . Recycling Units . | . . . . . . Scanalyzers 1 | . . . 1 . . Garrison Access . | . . . . . . Total Hacks 60 | . 19 . 40 1 . Successful 29 | . 8 . 20 1 . Failed 30 | . 11 . 19 . . Catastrophic 5 | . 2 . 3 . . Database Lockouts 1 | . . . 1 . . Manual 46 | . 18 . 28 . . Terminals 54 | . 19 . 35 . . Fabricators . | . . . . . . Repair Stations 4 | . . . 4 . . Recycling Units . | . . . . . . Scanalyzers 1 | . . . 1 . . Garrison Access . | . . . . . . Terminal Hacks 10 | . 1 . 8 1 . Robot Analysis 2 | . 1 . 1 . . Prototype ID Bank 4 | . . . 4 . . Open Door 1 | . . . . 1 . Unreport Threat 1 | . . . 1 . . Locate Traps 2 | . . . 2 . . Fabricator Hacks . | . . . . . . Repair Station Hacks 4 | . . . 4 . . Scan Component 2 | . . . 2 . . Repair 2 | . . . 2 . . Recycling Unit Hacks . | . . . . . . Scanalyzer 1 | . . . 1 . . Insert Component 1 | . . . 1 . . Garrison Access Hacks . | . . . . . . Unauthorized Hacks 13 | . 6 . 7 . . Terminals 13 | . 6 . 7 . . Botnet 3 | . 1 . 2 . . Skim 10 | . 5 . 5 . . Fabricators . | . . . . . . Repair Stations . | . . . . . . Recycling Units . | . . . . . . Scanalyzers . | . . . . . . Garrison Access . | . . . . . . Data Cores Recovered . | . . . . . . Used . | . . . . . . Hacking Detections 16 | . 7 . 9 . . Full Trace Events . | . . . . . . Feedback Events . | . . . . . . Feedback Blocked . | . . . . . . Robot Schematics Acquired . | . . . . . . Robots Built . | . . . . . . Authchips . | . . . . . . Time . | . . . . . . Total Robot Build Rating . | . . . . . . Part Schematics Acquired . | . . . . . . Parts Built . | . . . . . . Authchips . | . . . . . . Time . | . . . . . . Total Part Build Rating . | . . . . . . Part Studies Acquired . | . . . . . . Parts Repaired 2 | . . . 2 . . Time 83 | . . . 83 . . Parts Recycled . | . . . . . . Recycled Matter . | . . . . . . Retrieved Matter . | . . . . . . Retrieved Components . | . . . . . . Parts Scanalyzed . | . . . . . . Part Schematics Acquired . | . . . . . . Parts Damaged . | . . . . . . Bothacking | -11 -10 -10 -9 -9 -9 ------------ Run | Yrd Mat Min Mat Min Exi Used RIF Installer . | . . . . . . Robots Hacked . | . . . . . . Non-combat . | . . . . . . Combat . | . . . . . . Robot Hacks Applied . | . . . . . . Relay Couplers Released . | . . . . . . Fabnet Peak Effective % . | . . . . . . Robots Rewired . | . . . . . . Allies Hacked . | . . . . . . Hacks Repelled . | . . . . . . Allies | -11 -10 -10 -9 -9 -9 -------- Run | Yrd Mat Min Mat Min Exi Total Allies 6 | . . 5 . 1 . Largest Group 4 | . . 4 2 1 1 Highest-Rated Group 51 | . . 51 24 31 31 Highest-Rated Ally 31 | . . 31 16 31 31 Total Orders 1 | . . . . . 1 STAY 1 | . . . . . 1 Ally Attacks 51 | . . 19 26 . 6 Total Damage 554 | . . 262 290 . 2 Kills 9 | . . 2 7 . . Allies Corrupted . | . . . . . . Allies Melted . | . . . . . . Intel | -11 -10 -10 -9 -9 -9 ------- Run | Yrd Mat Min Mat Min Exi Active Infowar (turns) 2752 | 23 886 927 421 345 150 Sensors 1 | . . 1 . . . Seismic 2751 | 23 886 926 421 345 150 Robot Analysis Total 2 | . 1 . 1 . . Derelict Logs Recovered 5 | . . 3 . 2 . Drone Launches 4 | . . . . . 4 Drone Recoveries . | . . . . . . Exploration | -11 -10 -10 -9 -9 -9 ------------- Run | Yrd Mat Min Mat Min Exi Turns Passed 5325 | 107 977 1018 1731 1139 353 Spaces Moved 2619 | 58 515 558 823 551 114 Core 15 | 15 . . . . . Treads 1989 | 43 515 558 823 50 . Legs . | . . . . . . Wheels 615 | . . . . 501 114 Hover . | . . . . . . Flight . | . . . . . . Fastest Speed 50 | 50 160 160 160 150 135 Average Speed 156 | 135 160 160 160 150 143 Slowest Speed 240 | 160 160 160 240 160 150 Overloaded Moves . | . . . . . . Propulsion Burnouts . | . . . . . . Robots Hopped . | . . . . . . Potential Cave-ins . | . . . . . . Cave-ins Triggered . | . . . . . . Exploration Rate (%) 61 | 4 82 93 68 100 21 Regions Visited 5 Branch Regions 3 Pre-discovered Areas 6 | . . 4 1 1 . Known Exits Taken 2 | . . 1 1 . . Unknown Exits Taken 3 | 1 1 . . 1 . Scrap Searched 2 | . . 1 . 1 . Spaces Dug 2 | . . . . 2 . Terrain Destroyed 16 | . . . 12 2 2 Melee 2 | . . . . 2 . Projectile . | . . . . . . AOE 14 | . . . 12 . 2 Terrain Rammed . | . . . . . . Walls Destroyed . | . . . . . . Machines Disabled . | . . . . . . Actions | -11 -10 -10 -9 -9 -9 --------- Run | Yrd Mat Min Mat Min Exi Total 3462 | 77 593 636 1096 831 229 Wait 443 | . 16 29 119 249 30 Move 2615 | 58 514 557 822 550 114 Hop . | . . . . . . Pick Up 53 | 8 6 8 24 4 3 Fast Attach 13 | 5 . . 5 3 . Attach 24 | 2 1 2 4 4 11 Detach 6 | . 1 . . . 5 Swap 42 | . 10 9 14 5 4 Drop 35 | . 3 3 26 3 . Fire 207 | 4 40 23 71 9 60 Melee 4 | . . . . 4 . Ram . | . . . . . . Kick . | . . . . . . Crush 18 | . 2 5 11 . . Escape Stasis . | . . . . . . Rewire 2 | . . . . . 2 Trap . | . . . . . . Miscellaneous . | . . . . . . Route ------- -11/Scrapyard -10/Materials (discovered 6 exits: *Mat x3 / [*Min x2] / [*Sub]) -10/Mines (discovered 2 exits: *Mat x2) -9/Materials (discovered 4 exits: *Mat x3 / *Min) -9/Mines (discovered 3 exits: *Mat x2 / [*Exi]) -9/Exiles (discovered 2 exits: *Min x2) History --------- Turn | Location | Event 16 | -11/Scrapyard | Discovered new exit (range 13) 108 | -11/Scrapyard | Entered Materials 141 | -10/Materials | Discovered new exit (range 14) 304 | -10/Materials | Build established: Mutant 402 | -10/Materials | Discovered new exit (range 3) 573 | -10/Materials | Discovered new exit (range 8) 690 | -10/Materials | Discovered new exit (range 16) 771 | -10/Materials | Discovered new exit (range 8) 801 | -10/Materials | Identified exit to Materials 1008 | -10/Materials | Learned 4 Recycling zone layouts 1059 | -10/Materials | Learned 4 Recycling zone layouts 1085 | -10/Materials | Entered Mines 1159 | -10/Mines | Learned location of Zion (-7) 1228 | -10/Mines | Found a hidden stash of uninstalled traps 1285 | -10/Mines | Learned location of Storage (-8) 1581 | -10/Mines | Received a Rocket Launcher from a helpful Derelict 1697 | -10/Mines | Assisted by bots powering up and referring to "LRC-V3" 1769 | -10/Mines | Build established: Scavenger-Mutant 1906 | -10/Mines | Found a damaged Exp. Sensor Array with a note attached 1910 | -10/Mines | Found Prototype Device 1913 | -10/Mines | Identified Exp. Sensor Array 2103 | -10/Mines | Entered Materials 2103 | -9/Materials | Accompanied by 2 allies 2103 | -9/Materials | Evolved 2 slots: Utility x2 2104 | -9/Materials | Identified exit to Materials 2104 | -9/Materials | Identified exit to Mines 2568 | -9/Materials | Lost 4 parts (2n2u) 2702 | -9/Materials | Discovered exit to Materials (range 16) 2780 | -9/Materials | Learned Storage security intel 2812 | -9/Materials | Learned location of 3 exits from Materials 2841 | -9/Materials | Learned location of 1 exit from Recycling 3290 | -9/Materials | Central database locked down 3361 | -9/Materials | Destroyed 7 combat bots 3571 | -9/Materials | Repaired Imp. Treads 3623 | -9/Materials | Repaired Adv. Beam Cannon 3834 | -9/Materials | Entered Mines 3837 | -9/Mines | Assembled infested the area 4150 | -9/Mines | Found the Drone Emporium 4157 | -9/Mines | Found Prototype Device 4157 | -9/Mines | Identified Bomb Drone Bay 4251 | -9/Mines | Learned Materials non-interactive machine intel 4311 | -9/Mines | Lost 4 parts (1n2u1w) 4505 | -9/Mines | Discovered exit to Materials (range 7) 4569 | -9/Mines | Build established: Mutant 4803 | -9/Mines | Discovered new exit (range 5) 4927 | -9/Mines | Discovered exit to Materials (range 5) 4940 | -9/Mines | Met a Derelict testing a Signal Generator 4973 | -9/Mines | Entered Exiles 4973 | -9/Exiles | Accompanied by 1 ally 4974 | -9/Exiles | Identified exit to Mines 5015 | -9/Exiles | Met 8R-AWN 5039 | -9/Exiles | Met EX-HEX 5130 | -9/Exiles | Attacked by the Exiles 5131 | -9/Exiles | Core integrity fell below 50% 5215 | -9/Exiles | Core integrity fell below 20% 5224 | -9/Exiles | Lost 3 parts (1p1u1w) 5296 | -9/Exiles | Lost 4 parts (2n2w) 5296 | -9/Exiles | Discovered exit to Mines (range 14) 5326 | -9/Exiles | Destroyed by 8R-AWN with 8R-AWN's Boregun Last Messages --------------- 05278_ Wall collapses. 05278_ HV Slug penetrates Wall. 05278_ Penetrated by HV Slug. 05282_ HV Slug penetrates Wall. 05282_ HV Slug penetrates Machine. 05282_ Penetrated by HV Slug. 05282_ HV Slug penetrates Wall. 05296_ EXIT=FOUND: MINES 05299_ HV Slug penetrates Wall. 05313_ Penetrated by HV Slug. 05313_ HV Slug penetrates Wall. 05313_ Penetrated by HV Slug. 05313_ HV Slug penetrates Wall. 05317_ Penetrated by HV Slug. 05317_ HV Slug penetrates Wall. 05317_ Penetrated by HV Slug. 05317_ HV Slug penetrates Wall. 05322_ Penetrated by HV Slug. 05322_ HV Slug penetrates Wall. 05326_ Penetrated by HV Slug. Map ----- +----------------------------------------------------+ | ????????????????????????????????????????????????? | | ????????????????????????????????????????????????? | | ????????????????????????????????????????????????? | | ????????????????????????????????????????????????? | | ????????????????????????????????????????????????? | | ????????????????????????????????????????????????? | | ????????????????????????????????????????????????? | | ????????????????????????????????????????????????? | | ????????????????????????????????????????????????? | | ????????????????????????????????????????????????? | | ????????????????????????????????????????????????? | | ????????????????????????????????????????????????? | | ????????????????????????????????????????????????? | | ????????????????????????????????????????????????? | | ????????????????????????????????????????????????? | | ????????????????????????????????????????????????? | | ????????????????????????????????????????????????? | | ?????????????????????????????###????????????????? | | ????????????????????????????# #????????????????? | | ???????????????????????????? #????????????????? | | ???????????????????????????? > #????????????????? | | ??????????????????????????? #????????????????? | | ????????????????????????### #????????????????? | | ????????????????????????#;# #?????????????????? | | ????????????????????????#; ##????????????????? | | ????????????????????????#@ #????????????????? | | ????#####???????????????# #????????????????? | | ???## #??????????????##g #????????????????? | | ???# "###??????????## # #????????????????? | | ??## " #??????????# #?#????????????????? | | ### "####?????### ##??????????????????? | | # """####### #???????????????????? | | # ! """""## ##???????????????????? | | =% ##???????????????????? | | ## #???????????????????? | | #### ##??????????????????? | | ""#?#" " "#"" ###????????????????? | | """##?####### #""#" ###??????????????? | | ####????????# ## ###### ##?????????????? | | ????????????##### #???### #?????????????? | | ?????????????????# ?????### #?????????????? | | ??????????????????# ??????### #?????????????? | | ???????????????????# ??????#" ##????????????? | | ????????????????????# ?????#### ###??????????? | | ?????????????????????# ???????# ##?????????? | | ??????????????????????????????## ###???????? | | ???????????????????????????????### #???????? | | ?????????????????????????????????# ##???????? | | ?????????????????????????????????## ##????????? | | ??????????????????????????????????#####?????????? | +----------------------------------------------------+ Best States ------------- Heat Dissipation 56 Energy Generation 14 Energy Capacity 275 Matter Stores 300 Matter Capacity 300 Sight Range 16 Terrain Scan Density 10 Armor Coverage 300 Evasion (%) 50 Recoil Reduction 2 Item Schematics ----------------- None Robot Schematics ------------------ None Fabricated ------------ Nothing Repaired ---------- Imp. Treads | 39% | -9/Materials Adv. Beam Cannon | 57% | -9/Materials Studied --------- None Alien Tech Used ----------------- None Achievements -------------- None Challenges ------------ None Game ------ Seed MasterControlDrivehammer Manual? 0 Play Time 00:33:29 Cumulative 426.2 hours Start 2025.12.24 @ 18:47:19 End 2025.12.24 @ 19:54:11 Sessions 1 Manual Loads 0 Difficulty Rogue Special Mode None Game No. 260 Rogue 260 Adventurer 0 Explorer 0 Win Type - Total 12 Types 11/0/1/0/0/0/0/0/0/0 Lore% 80 Gallery% 76 Achievement% 54 Wizard Run 0 Options --------- Layout 1 ASCII 0 Keyboard 1 Movement Numpad Keybinds 0 Fullscreen 2 Font 24/Smallcaps Map View 50x35 Zoom Use 0% Tactical HUD 1 Map Filters NONE Filters NONE Steam 1 RUN: 503b0914-96ed-457c-ab4e-cd567663ba43